bitfinex/quotes_ETHUSD_20260203
["timestamp","ask_amount","ask_price","bid_price","bid_amount"]
[1770143955760,0.1024,2142.2,2140.3,12.22203347]
[1770143955961,2.44537251,2142.2,2140.2,0.98]
[1770143956192,2.44537251,2142.2,2140.2,13.20203347]
[1770143956382,2.34297251,2142.2,2140.2,13.20203347]
[1770143956583,2.34297251,2142.2,2140.4,12.22203347]
[1770143956757,0.1024,2142.4,2140.5,1.22220335]
[1770143957496,0.1024,2142.2,2140.6,0.98]
[1770143958189,0.1024,2142.2,2140.7,0.98]
[1770143959358,12.9231031,2142.2,2140.7,0.98]
[1770143959557,10.50662198,2141.8,2140.7,0.98]
[1770143959783,1.0506622,2141.7,2140.7,0.98]
[1770143960090,0.1024,2142.2,2140.7,0.98]
[1770143960265,12.9231031,2142.2,2140.7,0.98]
[1770143960985,12.9231031,2142.2,2139.8,12.22203347]
[1770143960986,11.82099806,2141.8,2139.8,12.22203347]
[1770143961290,11.82099806,2141.8,2139.9,13.75174115]
[1770143961291,1.0824,2141.8,2139.9,13.75174115]
[1770143961472,0.0011,2142.0,2140.1,12.77174115]
[1770143961868,0.2335703,2141.6,2140.0,1.37517412]
[1770143962071,0.2335703,2141.6,2139.8,0.98]
[1770143962072,12.93216836,2141.6,2139.8,0.98]
[1770143962480,12.93216836,2141.6,2139.3,0.001]
[1770143962481,0.1024,2141.2,2139.3,0.001]
[1770143962688,10.50662198,2140.8,2139.3,0.001]
[1770143962865,11.71859806,2140.2,2139.0,2.40226394]
[1770143963066,10.50662198,2139.8,2139.0,0.001]
[1770143963262,0.1024,2140.0,2139.0,0.001]
[1770143963682,10.60902198,2139.8,2138.2,0.001]
[1770143964000,0.1024,2139.6,2138.2,0.001]
[1770143964164,0.98,2139.5,2138.2,0.001]
[1770143964974,10.50662198,2139.3,2138.2,0.001]
[1770143965199,0.1024,2139.1,2137.1,14.78868332]
[1770143965707,10.50662198,2138.8,2137.1,14.78868332]
[1770143965889,1.0506622,2138.7,2137.2,1.47886833]
[1770143966073,0.98,2138.9,2137.2,1.47886833]
[1770143966279,0.98,2138.9,2137.2,14.25060948]
[1770143966585,11.71859806,2139.6,2137.2,14.25060948]
[1770143966792,1.08425923,2139.7,2137.2,14.25060948]
[1770143967099,12.36563672,2140.0,2137.5,12.77174115]
[1770143967297,11.71859806,2139.7,2137.5,12.77174115]
[1770143967601,10.50662198,2139.8,2137.6,13.75174115]
[1770143967602,12.59920702,2139.6,2137.6,13.75174115]
[1770143967803,0.98,2139.5,2137.6,13.75174115]
[1770143968376,12.69859806,2139.5,2137.6,0.98]
[1770143968608,1.28009981,2139.4,2137.2,14.25060948]
[1770143968778,1.28009981,2139.4,2137.6,0.98]
[1770143968980,10.60902198,2139.3,2137.6,0.98]
[1770143969496,0.1024,2139.3,2137.6,0.98]
[1770143969907,0.64703866,2139.3,2137.6,0.98]
[1770143970068,0.1024,2139.1,2137.2,15.23060948]
[1770143972593,0.1024,2139.1,2136.7,1.17000099]
[1770143972594,10.50662198,2138.7,2136.7,12.77174115]
[1770143972906,0.1024,2138.9,2136.8,13.75174115]
[1770143972907,11.82099806,2138.9,2136.8,13.75174115]
[1770143973268,11.82099806,2138.7,2136.8,13.75174115]
[1770143973870,11.82099806,2138.7,2137.4,0.001]
[1770143974107,0.1024,2138.5,2137.1,0.001]
[1770143974272,22.32762004,2138.3,2137.1,0.001]
[1770143974705,0.1024,2138.3,2137.1,0.001]
[1770143974905,1.28009981,2138.6,2137.1,0.001]
[1770143975213,1.36457365,2139.2,2137.1,12.77274115]
[1770143975395,0.54463866,2139.1,2137.1,12.77274115]
[1770143975600,1.36457365,2139.2,2137.1,12.77274115]
[1770143975900,0.1024,2139.1,2137.1,12.77274115]
[1770143976102,0.1024,2139.1,2137.2,13.75274115]
[1770143976311,2.47161937,2139.1,2137.3,1.37537412]
[1770143976477,2.47161937,2139.1,2137.3,14.14711527]
[1770143978707,0.1024,2139.2,2137.3,14.14711527]
[1770143979803,0.1024,2139.2,2137.4,12.77174115]
[1770143980174,0.54463866,2139.6,2137.4,12.77174115]
[1770143980407,0.1024,2139.5,2137.5,12.77174115]
[1770143980583,0.64703866,2139.5,2137.5,12.77174115]
[1770143980785,0.1024,2139.5,2137.7,12.77174115]
[1770143981221,0.1024,2139.5,2137.8,13.75274115]
[1770143981376,0.1024,2139.7,2137.8,12.77174115]
[1770143981698,11.82099806,2139.7,2137.9,0.981]
[1770143981873,0.1024,2139.5,2138.0,1.37527412]
[1770143982074,0.1024,2139.5,2137.9,0.981]
[1770143982676,0.2335703,2139.9,2137.9,0.981]
[1770143982677,0.45679428,2140.3,2138.0,12.77174115]
[1770143982877,11.55728418,2140.7,2138.9,12.77174115]
[1770143982878,1.56877188,2140.7,2138.9,12.77174115]
[1770143983076,10.50662198,2141.9,2139.6,13.0157831]
[1770143983282,11.71969806,2142.0,2140.0,12.77174115]
[1770143983489,10.50662198,2141.9,2139.7,12.77174115]
[1770143983693,10.50662198,2141.9,2139.8,0.981]
[1770143983694,11.71859806,2141.8,2139.8,0.981]
[1770143983888,22.22522004,2141.4,2139.6,0.24404195]
[1770143984103,0.1024,2141.3,2139.6,0.24404195]
[1770143984775,3.203522,2141.7,2139.6,13.0157831]
[1770143984981,2.222522,2141.7,2139.7,12.77174115]
[1770143985199,2.222522,2141.7,2139.9,12.77174115]
[1770143985594,0.0011,2142.0,2139.9,12.77174115]
[1770143986007,0.0011,2142.0,2139.9,13.94000127]
[1770143986217,0.0011,2142.0,2140.1,12.84195601]
[1770143986398,0.0011,2142.0,2140.0,0.07021486]
[1770143986399,0.0011,2142.0,2140.3,12.77174115]
[1770143986589,0.0011,2142.0,2140.5,12.77174115]
[1770143986916,0.0011,2142.0,2140.6,13.75116498]
[1770143987783,0.0011,2142.0,2140.7,0.981]
[1770143989918,1.55201817,2144.2,2141.6,12.77174115]
[1770143990226,0.0011,2144.4,2141.3,13.28294939]
[1770143990227,10.49668802,2143.7,2141.3,13.28294939]
[1770143990387,10.49668802,2143.2,2141.4,2.36029417]
[1770143990695,12.61159806,2143.5,2141.4,14.89229432]
[1770143990696,11.71859806,2143.5,2141.4,14.89229432]
[1770143991119,10.49668802,2143.2,2141.4,14.89229432]
[1770143991712,10.49668802,2143.2,2141.4,2.36029417]
[1770143992014,0.1035,2143.1,2141.4,0.98]
[1770143992607,12.23083822,2143.1,2141.4,0.98]
[1770143993419,0.1035,2143.1,2141.4,0.98]
[1770143993622,0.0011,2143.1,2141.4,13.51200015]
[1770143993845,0.0011,2143.1,2141.5,14.34663543]
[1770143993986,0.0011,2143.1,2141.7,12.99543541]
[1770143994193,0.0011,2145.2,2142.1,12.99543541]
[1770143994194,12.39946533,2144.6,2142.1,12.99543541]
[1770143994423,12.39946533,2144.6,2142.3,12.99543541]
[1770143995119,0.1024,2144.5,2142.3,12.99543541]
[1770143995296,12.39946533,2144.6,2142.3,12.99543541]
[1770143995811,0.1024,2144.5,2142.3,12.99543541]
[1770143996322,0.1024,2144.5,2142.3,14.16239939]
[1770143996533,0.1024,2144.5,2142.5,12.99543541]
[1770143996912,0.0011,2144.6,2142.5,12.99543541]
[1770143998220,0.0011,2144.6,2142.5,14.16228856]
[1770143998619,0.0011,2144.6,2142.7,12.99543541]
[1770143998842,0.0011,2144.6,2142.9,12.99543541]
[1770143999136,0.0011,2144.6,2143.0,0.98]
[1770143999445,0.0011,2144.2,2143.1,1.35120002]
[1770143999809,0.0011,2144.2,2143.1,14.34663543]
[1770144000335,0.0011,2144.2,2143.0,0.98]
[1770144001351,0.0011,2144.6,2143.0,13.97543541]
[1770144001512,0.0011,2145.0,2143.4,13.06565027]
[1770144001711,0.0011,2145.0,2143.4,12.99543541]
[1770144001920,0.0011,2145.0,2143.5,17.96965027]
[1770144002215,0.0011,2145.0,2143.0,13.97543541]
[1770144002605,0.1035,2145.0,2143.0,13.97543541]
[1770144002805,12.50186533,2145.0,2143.0,13.97543541]
[1770144003246,0.0011,2145.0,2143.0,13.97543541]
[1770144003914,0.0011,2145.0,2143.0,15.14202426]
[1770144004131,0.0011,2145.0,2143.2,12.99543541]
[1770144004308,12.50186533,2145.0,2143.1,1.51420243]
[1770144004516,12.50186533,2145.0,2142.5,0.07021486]
[1770144004517,10.49668802,2144.1,2142.2,12.99543541]
[1770144004716,12.39836533,2144.3,2142.3,13.97443541]
[1770144004950,12.39836533,2144.8,2142.5,12.99543541]
[1770144005250,10.49668802,2145.1,2142.3,0.979]
[1770144005251,12.39836533,2144.5,2142.6,1.29954354]
[1770144005424,12.39836533,2144.5,2142.3,0.979]
[1770144005425,12.50076533,2144.1,2142.3,0.979]
[1770144005626,13.37736533,2144.0,2142.3,0.979]
[1770144005825,1.33773653,2143.9,2142.3,0.979]
[1770144006226,1.33773653,2143.9,2141.5,0.07021486]
[1770144006227,12.50076533,2143.6,2141.5,12.99543541]
[1770144006442,1.33773653,2143.9,2141.0,12.99543541]
[1770144006443,12.39836533,2143.1,2141.0,12.99543541]
[1770144006751,2.28950534,2143.0,2141.5,0.979]
[1770144007777,12.50076533,2143.0,2141.1,1.29964354]
[1770144008047,12.39836533,2142.6,2141.0,0.979]
[1770144008549,0.979,2142.7,2141.0,0.979]
[1770144009122,0.2335703,2143.2,2141.0,13.97443541]
[1770144009123,12.50076533,2143.0,2141.0,13.97443541]
[1770144009819,10.49668802,2143.2,2141.0,0.979]
[1770144009820,12.50076533,2142.8,2141.0,0.979]
[1770144010022,1.2125703,2143.3,2141.0,0.979]
[1770144010023,1.1475688,2143.1,2141.0,13.97443541]
[1770144010256,0.1024,2143.0,2141.0,13.97443541]
[1770144010550,1.1475688,2143.1,2141.0,15.14208778]
[1770144011076,0.75167998,2144.0,2141.0,15.14208778]
[1770144011077,1.23983653,2144.7,2143.4,12.99543541]
[1770144011366,0.0011,2145.3,2143.7,12.99543541]
[1770144011558,12.39946533,2146.1,2144.3,13.06565027]
[1770144011559,0.0011,2146.1,2144.3,13.06565027]
[1770144011725,0.0011,2146.1,2144.4,2.29258651]
[1770144012245,0.0011,2146.1,2144.4,15.28802192]
[1770144012776,0.979,2146.3,2144.4,15.28802192]
[1770144012777,0.0011,2147.7,2145.7,12.99543541]
[1770144012923,0.0011,2147.7,2147.1,0.07021486]
[1770144013118,0.0011,2147.7,2145.8,0.979]
[1770144013119,0.0011,2147.7,2145.8,13.97443541]
[1770144013364,0.0011,2147.7,2146.0,12.99543541]
[1770144014329,0.0011,2147.7,2146.3,12.99543541]
[1770144015124,0.0011,2148.2,2146.4,12.99543541]
[1770144015423,0.346,2149.0,2146.1,0.979]
[1770144015424,12.64193693,2150.1,2147.4,12.99543541]
[1770144015659,12.39836533,2149.8,2147.5,2.27754354]
[1770144015830,12.39836533,2149.8,2147.5,15.27297895]
[1770144015831,0.978,2149.7,2147.5,15.27297895]
[1770144016058,22.89505335,2149.4,2147.5,1.29954354]
[1770144016258,22.89505335,2149.4,2146.9,12.99543541]
[1770144016259,10.49668802,2148.9,2146.9,12.99543541]
[1770144016435,12.50076533,2149.3,2146.3,12.99543541]
[1770144016759,0.1024,2148.4,2146.3,12.99543541]
[1770144016957,0.1024,2148.2,2146.3,14.29497895]
[1770144017175,10.49668802,2148.0,2146.3,1.29954354]
[1770144017374,10.49668802,2148.0,2145.9,0.978]
[1770144017662,10.49668802,2147.5,2145.2,12.99543541]
[1770144018043,10.49668802,2147.0,2144.5,12.99543541]
[1770144018244,12.50076533,2147.4,2144.7,12.99543541]
[1770144018245,13.55043413,2147.4,2144.7,12.99543541]
[1770144018441,1.55664647,2149.0,2146.3,12.99543541]
[1770144018664,1.55664647,2149.0,2146.2,0.07021486]
[1770144018665,0.978,2148.9,2146.4,13.97343541]
[1770144018839,13.37636533,2148.9,2146.4,13.97343541]
[1770144019040,1.0804,2148.8,2146.4,13.97343541]
[1770144019243,1.0804,2148.8,2146.4,0.978]
[1770144019244,0.1024,2148.4,2146.4,0.978]
[1770144019437,0.1024,2147.9,2145.9,0.978]
[1770144019635,0.978,2147.8,2145.9,0.978]
[1770144020036,0.978,2147.8,2145.2,12.99543541]
[1770144020037,0.1024,2147.7,2145.2,12.99543541]
[1770144020259,0.1024,2147.5,2145.4,0.978]
[1770144020435,10.59908802,2147.5,2145.4,0.978]
[1770144020766,0.1024,2147.3,2145.2,12.99543541]
[1770144021362,12.13574607,2147.3,2144.8,12.41696166]
[1770144021533,0.1024,2147.1,2144.9,12.41696166]
[1770144021869,0.1024,2147.1,2144.6,1.61769879]
[1770144021870,10.49668802,2146.4,2144.6,1.54748393]
[1770144022029,0.1024,2146.1,2144.4,1.31358651]
[1770144022230,0.1024,2146.1,2143.7,12.41696166]
[1770144022231,10.59908802,2145.9,2143.7,12.41696166]
[1770144022450,0.978,2145.8,2143.7,12.41696166]
[1770144022658,0.1024,2145.7,2143.7,12.41696166]
[1770144022859,10.59908802,2145.7,2143.6,0.978]
[1770144023193,10.59908802,2145.7,2143.2,12.41796166]
[1770144023194,14.16905487,2145.6,2143.2,12.41796166]
[1770144023368,0.1024,2145.4,2143.2,12.41796166]
[1770144023763,0.978,2145.3,2143.2,12.41796166]
[1770144024137,0.1024,2145.4,2143.2,12.41796166]
[1770144024338,0.978,2145.3,2143.3,1.24179617]
[1770144024966,0.978,2145.2,2143.5,12.48717652]
[1770144025169,0.978,2145.2,2143.5,13.46517652]
[1770144025339,10.49668802,2146.7,2144.1,12.65053196]
[1770144025664,1.1577088,2147.4,2144.3,12.72074682]
[1770144025665,11.79977577,2146.5,2144.3,12.72074682]
[1770144025864,11.79977577,2146.5,2144.3,12.41696166]
[1770144026075,3.20764638,2146.6,2144.6,12.41696166]
[1770144026076,2.22964638,2146.6,2144.6,12.41696166]
[1770144026277,0.978,2146.5,2144.7,13.39496166]
[1770144026454,1.1577088,2147.4,2145.1,0.07021486]
[1770144026745,1.1577088,2147.4,2145.0,12.72074682]
[1770144026746,0.978,2147.3,2145.4,12.41696166]
[1770144026937,11.79977577,2147.6,2145.4,12.41696166]
[1770144026938,0.978,2147.2,2145.4,12.41696166]
[1770144027137,0.978,2147.1,2145.4,12.41696166]
[1770144027359,0.978,2147.1,2144.8,12.41696166]
[1770144027556,0.978,2147.1,2144.9,13.75645783]
[1770144028076,1.0804,2147.0,2144.9,13.75645783]
[1770144028294,12.88017577,2147.0,2144.9,1.33949617]
[1770144028454,12.88017577,2147.0,2144.7,0.978]
[1770144028982,0.1024,2146.8,2144.3,12.41696166]
[1770144029140,11.90217577,2146.8,2144.3,12.41696166]
[1770144029976,11.90217577,2146.8,2144.3,13.58282048]
[1770144030179,1.21357461,2146.7,2144.5,12.41696166]
[1770144030473,1.0804,2146.6,2144.5,12.41696166]
[1770144031043,13.91865449,2148.2,2144.5,12.41696166]
[1770144031044,11.79977577,2148.2,2144.5,12.41696166]
[1770144031244,2.30084533,2148.4,2145.5,12.41696166]
[1770144031245,11.79977577,2147.9,2145.5,12.41696166]
[1770144031558,0.978,2147.8,2145.9,0.07021486]
[1770144031751,0.978,2147.7,2145.8,12.41696166]
[1770144031950,0.978,2147.6,2145.8,12.41696166]
[1770144032254,11.79977577,2148.3,2145.8,12.41696166]
[1770144032255,0.978,2147.5,2145.8,12.41696166]
[1770144032447,0.978,2147.5,2145.2,12.82314682]
[1770144032647,0.1024,2147.8,2145.4,12.48717652]
[1770144032854,0.978,2147.4,2145.6,12.41696166]
[1770144033167,0.1024,2147.3,2145.6,12.41696166]
[1770144033668,11.79977577,2147.9,2145.6,12.41696166]
[1770144033870,1.0804,2147.8,2145.6,12.41696166]
[1770144034171,0.1024,2147.6,2145.7,1.24169617]
[1770144034586,11.90217577,2147.6,2145.7,1.24169617]
[1770144034787,0.1024,2147.4,2145.3,1.40587811]
[1770144035002,0.1024,2147.0,2145.3,1.40587811]
[1770144035189,0.1024,2147.0,2144.7,1.16564106]
[1770144035367,0.1024,2147.0,2144.7,12.41696166]
[1770144035871,0.1024,2147.0,2144.7,13.58262319]
[1770144035872,0.1024,2146.8,2144.7,13.58262319]
[1770144036396,0.1024,2146.8,2144.5,1.3371023]
[1770144036397,12.03334607,2146.3,2144.5,0.28888744]
[1770144036569,0.2335703,2146.5,2143.8,12.41696166]
[1770144036570,0.1024,2146.1,2143.8,12.41696166]
[1770144036771,11.90217577,2146.1,2143.8,12.41696166]
[1770144036960,11.90217577,2146.1,2144.1,12.41696166]
[1770144036961,0.1024,2146.1,2144.1,12.41696166]
[1770144037160,0.977,2146.0,2144.2,1.24169617]
[1770144037467,0.1024,2145.9,2144.2,1.24169617]
[1770144037660,0.1024,2145.9,2143.6,12.41696166]
[1770144038096,11.79977577,2146.1,2143.6,12.41696166]
[1770144038097,0.1024,2145.7,2143.6,12.41696166]
[1770144038467,0.978,2145.6,2143.6,13.5832233]
[1770144038667,0.978,2145.6,2143.6,12.41696166]
[1770144038889,0.1024,2145.7,2143.7,1.35832367]
[1770144039203,0.978,2145.6,2143.7,13.77528533]
[1770144039410,0.1024,2145.5,2143.7,13.77528533]
[1770144039567,0.978,2145.4,2143.7,13.77528533]
[1770144039764,0.978,2145.3,2143.7,13.77528533]
[1770144040081,0.1024,2145.9,2143.8,14.96060977]
[1770144040267,0.978,2145.8,2145.3,0.10663673]
[1770144040469,0.978,2145.8,2143.8,13.79449019]
[1770144040896,0.978,2145.8,2143.8,13.79549019]
[1770144041101,0.1024,2145.9,2143.9,1.51538139]
[1770144041388,0.978,2145.7,2143.9,1.51538139]
[1770144041570,0.1024,2145.9,2143.9,1.51538139]
[1770144041775,0.1024,2145.9,2143.9,14.00255791]
[1770144041983,0.1024,2145.9,2143.6,4.73482909]
[1770144041984,11.90217577,2145.7,2143.0,0.001]
[1770144042315,1.21915674,2141.6,2140.6,5.39446659]
[1770144042520,1.21915674,2141.6,2139.8,12.41796166]
[1770144042521,0.978,2141.5,2139.8,12.41796166]
[1770144042822,0.978,2141.5,2138.6,12.41696166]
[1770144042823,0.07021486,2139.2,2138.6,12.41696166]
[1770144042981,0.706,2139.2,2138.6,12.41696166]
[1770144043193,0.06545421,2139.3,2138.6,12.41696166]
[1770144043503,0.06545421,2139.1,2138.6,12.41696166]
[1770144043671,0.978,2139.3,2138.6,12.41696166]
[1770144043872,0.978,2139.3,2137.5,0.24415851]
[1770144043873,0.978,2139.3,2137.9,12.41696166]
[1770144044271,0.06545421,2139.5,2137.9,12.41696166]
[1770144044506,0.978,2139.4,2138.0,12.41696166]
[1770144045008,0.06545421,2139.3,2138.0,12.41696166]
[1770144045212,0.978,2139.2,2138.0,12.41696166]
[1770144045866,0.06545421,2139.7,2138.0,12.41696166]
[1770144045867,0.978,2139.1,2138.0,12.41696166]
[1770144046284,0.978,2139.1,2137.4,12.41696166]
[1770144046500,0.978,2139.0,2137.5,12.41696166]
[1770144046903,0.2335703,2139.5,2137.5,12.41696166]
[1770144047105,0.978,2139.1,2137.5,12.41696166]
[1770144048009,0.978,2139.1,2137.3,0.001]
[1770144048010,0.06079027,2138.7,2137.3,0.001]
[1770144048178,0.1024,2138.3,2137.3,0.001]
[1770144048788,0.02805967,2138.2,2137.3,0.001]
[1770144048988,0.13045967,2138.3,2137.3,0.001]
[1770144049283,0.2335703,2139.4,2137.3,12.41796166]
[1770144049483,0.1024,2138.9,2137.3,12.41796166]
[1770144050300,0.1024,2138.7,2137.3,12.41796166]
[1770144050511,1.0814,2138.7,2137.3,12.41796166]
[1770144050753,0.2335703,2138.8,2137.1,0.001]
[1770144050754,0.3359703,2138.5,2137.1,0.001]
[1770144051019,1.41448343,2138.5,2137.1,0.001]
[1770144051176,0.1024,2138.3,2137.1,0.001]
[1770144051713,1.04810804,2138.4,2137.1,0.001]
[1770144052090,1.04810804,2138.4,2137.1,12.64257511]
[1770144052418,1.04810804,2138.4,2137.2,12.64157511]
[1770144052781,0.03040509,2138.3,2137.5,0.001]
[1770144053009,0.03040509,2137.9,2137.3,0.001]
[1770144053205,0.03040509,2137.9,2137.1,0.001]
[1770144053206,0.03040509,2137.8,2137.1,0.001]
[1770144053407,0.03040509,2137.9,2137.1,0.001]
[1770144053711,0.03040509,2137.8,2137.1,0.001]
[1770144053915,0.03040509,2137.7,2137.1,0.001]
[1770144054609,0.03040509,2137.7,2136.5,0.001]
[1770144055532,0.03040509,2137.6,2136.5,0.001]
[1770144055813,0.03040509,2137.5,2136.5,0.001]
[1770144056022,0.03040509,2137.6,2136.5,0.001]
[1770144056582,0.03040509,2137.4,2136.5,0.001]
[1770144057022,0.03040509,2137.3,2136.5,0.001]
[1770144057725,0.03040509,2137.2,2136.5,0.001]
[1770144057928,0.03040509,2137.3,2136.5,0.001]
[1770144058098,0.38017997,2137.5,2136.5,13.72567845]
[1770144058303,0.03040509,2138.2,2136.7,12.74467845]
[1770144058822,0.03040509,2138.5,2136.7,12.74467845]
[1770144059022,0.03040509,2138.5,2136.7,13.9146985]
[1770144059517,0.03040509,2138.5,2136.9,12.74467845]
[1770144060318,0.03040509,2139.0,2136.9,12.74467845]
[1770144060319,0.03040509,2139.3,2137.2,12.74467845]
[1770144060627,0.03040509,2139.3,2137.4,12.74467845]
[1770144060628,0.03040509,2139.0,2137.4,12.74467845]
[1770144060931,0.03040509,2139.8,2138.1,12.77508354]
[1770144061133,0.3282416,2141.2,2138.8,12.74467845]
[1770144061344,0.03040509,2140.1,2138.9,13.72567845]
[1770144061516,0.03040509,2140.5,2138.9,13.72567845]
[1770144061710,0.03040509,2140.4,2139.1,12.74467845]
[1770144061933,0.03040509,2140.4,2138.3,12.74467845]
[1770144061934,0.03040509,2140.2,2138.3,12.74467845]
[1770144062240,0.03040509,2139.9,2138.5,12.74467845]
[1770144062441,0.03040509,2139.6,2138.5,12.74467845]
[1770144062602,0.03040509,2139.5,2138.5,12.74467845]
[1770144063532,0.03040509,2139.6,2138.5,12.74467845]
[1770144064119,0.03040509,2140.7,2138.5,12.74467845]
[1770144064435,0.03040509,2140.7,2138.7,12.74467845]
[1770144064631,0.03040509,2140.3,2138.7,12.74467845]
[1770144064834,0.03040509,2140.2,2138.7,12.74467845]
[1770144065046,0.03040509,2140.2,2138.9,12.74467845]
[1770144065445,0.03040509,2139.7,2139.0,0.981]
[1770144065648,0.03040509,2139.7,2139.1,0.981]
[1770144065849,0.03040509,2139.7,2138.5,12.74467845]
[1770144066158,0.03040509,2139.7,2137.6,12.74467845]
[1770144066159,0.0011,2139.0,2137.6,12.74467845]
[1770144066315,0.0011,2139.0,2137.8,12.74467845]
[1770144066316,0.03150509,2139.0,2137.8,12.74467845]
[1770144066731,0.0011,2139.0,2137.8,12.74467845]
[1770144067246,0.03040509,2140.2,2137.8,12.74467845]
[1770144067247,0.03040509,2140.2,2138.0,12.74467845]
[1770144067474,0.03040509,2140.2,2137.8,1.16938116]
[1770144067475,0.03040509,2140.2,2138.2,12.74467845]
[1770144067750,0.0011,2139.9,2138.4,12.74467845]
[1770144068315,0.03150509,2139.9,2138.4,12.74467845]
[1770144068747,0.03040509,2139.5,2138.4,12.74467845]
[1770144069059,0.03040509,2139.4,2138.4,12.74467845]
[1770144069622,0.03040509,2139.4,2137.6,12.77508354]
[1770144069925,0.03040509,2139.4,2137.5,0.03140509]
[1770144069926,0.03040509,2138.9,2137.7,13.72567845]
[1770144070124,0.03040509,2138.9,2137.8,12.74467845]
[1770144070454,0.03040509,2138.6,2137.7,0.981]
[1770144070658,0.03040509,2138.7,2137.7,0.981]
[1770144071031,10.56016259,2139.8,2137.7,0.981]
[1770144071239,0.03040509,2139.0,2137.7,13.72567845]
[1770144071664,0.03040509,2139.1,2137.7,13.72567845]
[1770144071826,0.03040509,2139.2,2137.7,13.72567845]
[1770144072031,0.03040509,2138.8,2137.7,13.72567845]
[1770144072563,0.03040509,2138.3,2137.8,0.981]
[1770144072866,0.03040509,2138.6,2137.8,0.981]
[1770144074467,0.03040509,2137.9,2137.3,0.001]
[1770144074670,0.03040509,2138.1,2137.3,0.982]
[1770144074891,1.84622825,2138.7,2137.3,0.44440795]
[1770144075175,1.84622825,2138.7,2137.1,1.98331496]
[1770144075176,0.1024,2138.3,2137.1,1.98331496]
[1770144075342,0.1024,2138.3,2137.3,0.981]
[1770144075531,0.93325335,2138.2,2137.3,0.981]
[1770144075733,3.77564488,2138.8,2137.3,0.981]
[1770144075984,0.1024,2138.6,2137.3,0.981]
[1770144076136,1.58025317,2138.7,2137.3,0.981]
[1770144076340,0.1024,2139.0,2137.3,0.981]
[1770144076542,0.93355987,2138.9,2137.3,0.981]
[1770144076742,0.1024,2139.0,2137.3,0.981]
[1770144076966,0.9336442,2138.9,2137.3,0.981]
[1770144077139,0.93370424,2138.8,2137.3,0.981]
[1770144077341,0.1024,2139.0,2137.3,0.981]
[1770144077642,0.93391322,2138.9,2137.5,0.001]
[1770144077837,0.1024,2139.0,2137.5,0.001]
[1770144078086,0.93384228,2138.9,2137.5,0.001]
[1770144078291,0.1024,2139.0,2137.5,0.001]
[1770144078292,0.93384228,2138.8,2137.5,0.001]
[1770144078589,0.1024,2138.6,2137.5,0.001]
[1770144078739,0.1024,2138.6,2137.3,0.001]
[1770144078740,0.3359703,2138.4,2137.3,0.001]
[1770144078945,0.1024,2138.2,2137.1,1.98331496]
[1770144079146,0.93397624,2138.1,2137.1,1.98331496]
[1770144079369,0.2335703,2138.4,2137.1,1.98331496]
[1770144079573,0.1024,2138.2,2137.1,1.98331496]
[1770144079740,0.93384879,2138.1,2137.1,1.98331496]
[1770144080040,0.1024,2138.2,2137.1,1.98331496]
[1770144080241,0.93363563,2138.1,2137.1,1.98331496]
[1770144080443,0.1024,2137.8,2136.4,0.001]
[1770144080684,0.93310284,2137.7,2136.4,0.001]
[1770144080976,0.1024,2137.8,2136.4,0.001]
[1770144081285,0.1024,2138.1,2136.5,12.53073178]
[1770144081449,0.1024,2138.4,2136.5,12.53073178]
[1770144081651,0.93295807,2138.3,2136.5,12.53073178]
[1770144081952,0.1024,2138.5,2136.5,12.53073178]
[1770144082152,0.57844391,2139.0,2136.9,12.52973178]
[1770144082377,12.04001545,2139.2,2136.5,0.001]
[1770144082378,0.93324375,2138.9,2137.0,13.51073178]
[1770144082585,12.04001545,2139.2,2137.1,12.52973178]
[1770144082586,0.93324375,2138.8,2137.1,12.52973178]
[1770144082739,1.51025795,2139.3,2137.1,12.52973178]
[1770144082944,1.51025795,2139.3,2137.0,0.981]
[1770144082945,0.0011,2139.9,2137.5,12.56013687]
[1770144083180,0.0011,2139.9,2138.3,12.52973178]
[1770144083391,0.0011,2139.9,2138.5,12.52973178]
[1770144083687,0.0011,2140.4,2138.8,12.52973178]
[1770144083872,1.51135795,2141.3,2139.4,12.52973178]
[1770144083873,0.0011,2141.3,2139.4,12.52973178]
[1770144084070,0.0011,2141.3,2139.3,0.03040509]
[1770144084071,0.0011,2141.3,2139.6,12.52973178]
[1770144084275,0.1024,2141.0,2139.6,12.52973178]
[1770144084466,0.0011,2141.3,2139.7,0.981]
[1770144084982,0.0011,2141.3,2139.8,0.981]
[1770144085303,0.93314982,2141.0,2139.2,12.52973178]
[1770144085456,1.03554982,2140.9,2139.3,0.981]
[1770144085652,0.1024,2140.7,2139.3,0.981]
[1770144086155,0.1024,2140.7,2138.4,1.16908127]
[1770144086156,0.1024,2140.1,2138.4,12.52973178]
[1770144086365,0.1024,2139.9,2138.5,13.51073178]
[1770144087290,1.51025795,2140.3,2138.5,13.51073178]
[1770144087495,0.1024,2140.7,2138.5,13.51073178]
[1770144087672,0.1024,2140.5,2138.5,13.51073178]
[1770144087852,0.1024,2140.5,2138.5,0.981]
[1770144088057,0.1024,2140.5,2138.6,12.52973178]
[1770144088298,0.93417481,2140.4,2138.6,12.52973178]
[1770144088496,0.1024,2140.5,2138.6,12.52973178]
[1770144088806,0.1024,2140.9,2138.6,12.52973178]
[1770144089095,0.1024,2140.9,2138.5,1.01140509]
[1770144089096,0.1024,2140.7,2138.8,12.52973178]
[1770144089396,0.1024,2140.5,2138.8,12.52973178]
[1770144089595,0.1024,2140.3,2138.9,0.981]
[1770144089807,1.51025795,2140.7,2138.9,0.981]
[1770144089808,0.2335703,2140.6,2138.9,0.981]
[1770144090103,1.03667163,2140.5,2138.9,0.981]
[1770144090285,0.1024,2140.3,2138.9,0.981]
[1770144090484,0.2335703,2140.7,2138.9,0.981]
[1770144090799,0.93446134,2140.6,2138.9,13.51073178]
[1770144091005,0.0011,2139.7,2138.9,13.51073178]
[1770144091183,0.0011,2139.7,2139.0,0.981]
[1770144091877,0.0011,2139.7,2139.1,0.981]
[1770144092594,0.0011,2139.7,2139.1,13.51073178]
[1770144092794,0.0011,2139.9,2139.1,13.51073178]
[1770144093585,0.1035,2140.8,2139.1,14.67944641]
[1770144093586,0.0011,2140.8,2139.1,14.67944641]
[1770144093781,0.0011,2140.8,2139.3,12.52973178]